bitfinex-derivatives/quotes_ETHF0:USTF0_20250317
["timestamp","ask_amount","ask_price","bid_price","bid_amount"]
[1742186069530,30.40187773,1908.8,1908.7,5.60721]
[1742186069733,33.77387773,1908.8,1908.7,5.60721]
[1742186074139,34.48537773,1908.8,1908.7,5.60721]
[1742186074341,35.94557773,1908.8,1908.7,5.60721]
[1742186075932,33.77287773,1908.8,1908.7,5.60721]
[1742186076131,30.40187773,1908.8,1908.7,5.60721]
[1742186078646,31.81827773,1908.8,1908.7,5.60721]
[1742186083348,32.86613773,1908.8,1908.7,3.2078]
[1742186083551,32.86613773,1908.8,1908.6,43.18704]
[1742186083750,2.7724,1908.7,1908.6,43.18704]
[1742186084049,2.0552,1908.7,1908.6,43.18704]
[1742186084253,30.40187773,1908.8,1908.7,1.04791]
[1742186084447,30.40187773,1908.8,1908.7,2.38701]
[1742186084642,30.40187773,1908.8,1908.7,5.59481]
[1742186086653,0.00787773,1908.8,1908.7,5.59481]
[1742186091355,1e-08,1908.8,1908.7,5.59481]
[1742186093050,1e-08,1908.8,1908.7,8.09481]
[1742186093259,4.02809999,1909.2,1908.8,2.61965]
[1742186093450,4.02809999,1909.2,1908.9,6.0361]
[1742186093650,4.02809999,1909.2,1909.1,1.04769]
[1742186094957,5.07573999,1909.2,1909.0,2.4650669]
[1742186096354,2.077,1909.1,1909.0,2.4650669]
[1742186096557,3.12469,1909.1,1909.0,0.0078569]
[1742186097560,2.077,1909.1,1909.0,1.0556069]
[1742186097753,2.077,1909.1,1909.0,2.4031069]
[1742186099162,3.12469,1909.1,1909.0,2.4031069]
[1742186099362,3.12469,1909.1,1909.0,1.3553569]
[1742186100058,6.33249,1909.1,1909.0,0.0078569]
[1742186100359,1.04782,1908.9,1908.7,2.48318]
[1742186100556,5.09696,1908.8,1908.7,2.48318]
[1742186100759,6.46196,1908.8,1908.7,1.4353]
[1742186101461,5.4141,1908.8,1908.7,2.48321]
[1742186102862,4.0491,1908.8,1908.7,2.48321]
[1742186103060,4.0491,1908.8,1908.7,3.20821]
[1742186103355,0.6791,1908.8,1908.7,3.20821]
[1742186108566,0.6791,1908.8,1908.7,3.92171]
[1742186109462,0.17802752,2721.6,1908.7,3.92171]
[1742186109463,5.87,1909.3,1908.8,2.61965]
[1742186109657,4.0605,1909.2,1909.1,1.04769]
[1742186109964,4.0605,1909.2,1909.1,3.11399]
[1742186110866,3.2078,1909.5,1909.3,1.04758]
[1742186111067,35.7536,1909.4,1909.3,1.04758]
[1742186111254,35.7536,1909.4,1909.2,4.5606]
[1742186111462,1.3187,1909.3,1909.2,5.60822]
[1742186111770,1.3187,1909.3,1909.2,45.05542]
[1742186112268,31.0649,1909.4,1909.3,1.04758]
[1742186112469,34.4349,1909.4,1909.3,1.04758]
[1742186112671,34.4349,1909.4,1909.3,1.71058]
[1742186114861,31.0649,1909.4,1909.3,1.71058]
[1742186115068,30.381,1909.4,1909.3,1.71058]
[1742186115568,3.37,1909.5,1909.4,1.04753]
[1742186115769,0.6867,1909.6,1909.5,1.04747]
[1742186115961,4.0567,1909.6,1909.5,1.77627]
[1742186116565,4.0567,1909.6,1909.4,1.04753]
[1742186116759,2.39708,1909.5,1909.3,4.25535]
[1742186116965,1.3496,1909.4,1909.3,1.04755]
[1742186117366,1.3496,1909.4,1909.2,42.5665]
[1742186117568,0.6586,1909.3,1909.2,42.5665]
[1742186117968,4.0286,1909.3,1909.2,42.5665]
[1742186118666,5.4623,1909.3,1909.2,42.5665]
[1742186119268,5.4623,1909.3,1909.2,41.5189]
[1742186119468,3.37,1909.3,1909.2,42.56654]
[1742186119764,5.4822,1909.3,1909.2,42.56654]
[1742186120182,5.4822,1909.3,1909.2,41.84764]
[1742186120870,4.0485,1909.3,1909.2,41.84764]
[1742186121072,3.37,1909.3,1909.2,41.84764]
[1742186121667,4.8171,1909.3,1909.2,41.84764]
[1742186123377,3.37,1909.3,1909.2,41.84764]
[1742186123578,3.37,1909.3,1909.2,42.55034]
[1742186124079,9.0778,1909.6,1909.5,1.04747]
[1742186124280,13.36542973,1909.6,1909.4,1.04748]
[1742186124483,12.4478,1909.6,1909.4,1.04748]
[1742186124680,0.6629,1909.5,1909.4,1.04748]
[1742186125372,4.0329,1909.5,1909.4,1.04748]
[1742186125573,5.3787,1909.5,1909.4,1.04748]
[1742186126380,5.3787,1909.5,1909.4,1.04753]
[1742186126778,6.42619,1909.5,1909.3,1.04754]
[1742186127081,1.3458,1909.4,1909.3,1.04754]
[1742186127975,1.04758,1909.3,1909.2,41.5027]
[1742186128370,1.71058,1909.3,1909.2,40.8]
[1742186128569,1.79894128,1909.3,1909.2,40.8]
[1742186128781,3.17934128,1909.3,1909.2,40.8]
[1742186129481,1.04772,1909.1,1908.8,1.71222]
[1742186129670,4.0928,1909.0,1908.8,1.71222]
[1742186129873,5.4732,1909.0,1908.8,1.71222]
[1742186130074,1.3804,1908.9,1908.8,1.71222]
[1742186130276,4.0928,1909.0,1908.9,1.0478]
[1742186130482,5.4732,1909.0,1908.9,41.8478]
[1742186131076,5.4732,1909.0,1908.9,40.8]
[1742186131280,5.4732,1909.0,1908.9,42.1315]
[1742186134185,5.4732,1909.0,1908.9,43.1793]
[1742186134684,5.4732,1909.0,1908.9,42.1315]
[1742186135286,6.52095,1909.0,1908.9,40.8]
[1742186135582,7.52734294,1909.0,1908.9,40.8]
[1742186135782,8.24884294,1909.0,1908.9,40.8]
[1742186136178,8.24884251,1909.0,1908.9,40.8]
[1742186136379,14.11884251,1909.0,1908.9,40.8]
[1742186137879,14.11884961,1909.0,1908.9,40.8]
[1742186138186,13.11245,1909.0,1908.9,40.8]
[1742186138574,13.20081782,1909.0,1908.9,40.8]
[1742186141683,13.20081273,1909.0,1908.9,40.8]
[1742186142383,13.2008073,1909.0,1908.9,40.8]
[1742186143582,14.11775582,1909.0,1908.9,40.8]
[1742186145190,14.02939852,1909.0,1908.9,40.8]
[1742186145491,14.11776408,1909.0,1908.9,40.8]
[1742186148697,17.32556408,1909.0,1908.9,40.8]
[1742186150093,14.11776408,1909.0,1908.9,40.8]
[1742186150293,17.32556408,1909.0,1908.9,40.8]
[1742186150887,17.32561044,1909.0,1908.9,40.8]
[1742186151691,16.40866192,1909.0,1908.9,40.8]
[1742186152793,16.40865068,1909.0,1908.9,40.8]
[1742186154098,15.68715068,1909.0,1908.9,40.8]
[1742186154299,12.47935068,1909.0,1908.9,40.8]
[1742186154600,12.47936299,1909.0,1908.9,40.8]
[1742186155305,13.39787715,1909.0,1908.9,40.8]
[1742186156398,1.00692715,1909.0,1908.9,40.8]
[1742186156609,4.50617216,1909.0,1908.9,40.8]
[1742186157102,4.50617216,1909.0,1908.9,42.2436]
[1742186157291,4.41775,1909.0,1908.9,42.2436]
[1742186158091,4.50617643,1909.0,1908.9,42.2436]
[1742186158498,4.41775,1909.0,1908.9,42.2436]
[1742186158902,4.50617773,1909.0,1908.9,42.2436]
[1742186159101,5.96707773,1909.0,1908.9,42.2436]
[1742186160611,4.50617773,1909.0,1908.9,42.2436]
[1742186161005,4.50620081,1909.0,1908.9,42.2436]
[1742186161908,3.37,1909.0,1908.9,43.2914]
[1742186162103,1.93430371,1909.1,1909.0,1.04775]
[1742186162409,5.30430371,1909.1,1909.0,3.84765]
[1742186162606,30.374,1909.2,1909.1,1.04769]
[1742186163605,30.374,1909.2,1909.1,4.25549]
[1742186164908,3.37,1909.3,1909.2,1.04764]
[1742186165815,3.37,1909.3,1909.2,2.49734]
[1742186167111,4.41758,1909.3,1909.2,1.4497]
[1742186167913,5.81288,1909.3,1909.2,1.4497]
[1742186168315,6.51258,1909.3,1909.2,1.4497]
[1742186169120,6.60105985,1909.3,1909.2,1.4497]
[1742186170613,6.51258,1909.3,1909.2,1.4497]
[1742186173325,5.465,1909.3,1909.2,1.4497]
[1742186173624,6.51258,1909.3,1909.2,1.4497]
[1742186178624,6.6010846,1909.3,1909.2,1.4497]
[1742186178930,9.8088846,1909.3,1909.2,1.4497]
[1742186180824,10.70782767,1909.3,1909.2,1.4497]
[1742186181130,10.70784677,1909.3,1909.2,1.4497]
[1742186183524,1.04769,1909.1,1909.0,1.4061]
[1742186183727,1.04775,1909.0,1908.9,40.8]
[1742186183925,7.31606518,1909.0,1908.9,40.8]
[1742186184132,8.21500825,1909.0,1908.9,40.8]
[1742186184532,8.91297877,1909.0,1908.9,40.8]
[1742186184830,12.81757115,1909.0,1908.9,40.8]
[1742186185029,18.68757115,1909.0,1908.9,40.8]
[1742186185233,1.04791,1908.7,1908.6,0.0078569]
[1742186185530,7.71320993,1908.7,1908.6,0.0078569]
[1742186185926,9.60610636,1908.7,1908.6,0.0078569]
[1742186186132,9.60610636,1908.7,1908.1,0.6801]
[1742186186133,1.04819,1908.2,1908.1,0.6801]
[1742186186432,4.41719,1908.2,1908.1,42.1883]
[1742186187533,5.75859,1908.2,1908.1,42.1883]
[1742186191337,4.7104,1908.2,1908.1,42.1883]
[1742186191637,5.8778569,1908.3,1908.2,1.04819]
[1742186191837,9.2478569,1908.3,1908.2,2.39919]
[1742186192037,10.5673569,1908.3,1908.2,2.39919]
[1742186192239,4.6973569,1908.3,1908.2,2.39919]
[1742186193242,3.3778569,1908.3,1908.2,3.12539]
[1742186193432,3.3778569,1908.3,1908.2,3.82619]
[1742186194130,0.0078569,1908.3,1908.2,3.82619]
[1742186194331,5.57521,1908.7,1908.5,1.04799]
[1742186194530,5.57521,1908.7,1908.6,1.4123]
[1742186194925,8.94521,1908.7,1908.6,1.4123]
[1742186196836,5.73741,1908.7,1908.6,1.4123]
[1742186197738,5.82592924,1908.7,1908.6,1.4123]
[1742186198839,3.37,1908.7,1908.6,1.4123]
[1742186199039,3.37,1908.7,1908.6,2.46027]
[1742186199234,5.87,1908.8,1908.6,2.46027]
[1742186199441,3.37,1908.7,1908.6,1.04797]
[1742186199941,3.37,1908.7,1908.5,1.048]
[1742186200235,4.41793,1908.7,1908.5,1.04802]
[1742186200436,1.04797,1908.6,1908.3,3.2078]
[1742186200640,2.50897,1908.6,1908.3,4.25588]
[1742186200837,1.04802,1908.5,1908.3,4.25588]
[1742186201040,3.37,1908.4,1908.3,4.25588]
[1742186201340,3.37,1908.4,1908.3,4.25593]
[1742186205640,3.37,1908.4,1908.3,3.2078]
[1742186205846,1.04815,1908.3,1908.1,41.84823]
[1742186206544,1.04815,1908.3,1908.1,40.8]
[1742186206741,2.50165,1908.3,1908.1,40.8]
[1742186207141,1.04819,1908.2,1908.1,40.8]
[1742186208441,3.22136,1908.3,1908.1,41.84823]
[1742186208640,5.08621,1908.4,1908.1,41.84823]
[1742186208840,6.53971,1908.4,1908.1,41.84823]
[1742186209042,6.53972,1908.4,1908.1,40.8]
[1742186209343,6.53972,1908.4,1908.1,41.84823]
[1742186209540,1.04814,1908.3,1908.1,41.84823]
[1742186209742,1.04814,1908.3,1908.1,40.8]
[1742186210146,6.53971,1908.4,1908.1,42.54144]
[1742186210538,4.0381,1908.4,1908.2,1.04817]
[1742186210749,3.37,1908.4,1908.2,1.04817]
[1742186211247,3.37,1908.4,1908.3,2.38393]
[1742186212247,3.37,1908.4,1908.3,1.3358]
[1742186213451,3.37,1908.4,1908.3,2.38393]
[1742186213752,3.37,1908.4,1908.3,1.3358]
[1742186215153,3.37,1908.4,1908.3,2.38393]
[1742186215342,3.37,1908.4,1908.3,1.3358]
[1742186216551,5.74238,1908.4,1908.3,1.3358]
[1742186217838,1.04819,1908.2,1908.1,40.8]
[1742186218448,1.77579,1908.2,1908.1,40.8]
[1742186219047,1.77579,1908.2,1908.1,42.1878]
[1742186219249,3.16289,1908.2,1908.1,42.1878]
[1742186223150,6.37069,1908.2,1908.1,40.8]
[1742186223355,6.45922939,1908.2,1908.1,40.8]
[1742186223757,6.45922939,1908.2,1908.1,42.1174]
[1742186224254,7.45409745,1908.2,1908.1,42.1174]
[1742186224453,8.35423762,1908.2,1908.1,42.1174]
[1742186225050,8.26569823,1908.2,1908.1,42.1174]
[1742186225250,8.35424659,1908.2,1908.1,42.1174]
[1742186225444,7.35937853,1908.2,1908.1,42.1174]
[1742186225753,7.35938002,1908.2,1908.1,42.1174]
[1742186226153,7.35938002,1908.2,1908.1,40.8]
[1742186226354,8.35390193,1908.2,1908.1,40.8]
[1742186228657,1.04835,1907.9,1907.8,1.3309]
[1742186228860,1.04841,1907.8,1907.7,1.323]
[1742186229065,6.38615879,1907.8,1907.7,42.123]
[1742186229463,7.28545461,1907.8,1907.7,42.123]
[1742186229865,6.38615879,1907.8,1907.7,42.123]
[1742186232156,6.29761,1907.8,1907.7,42.123]
[1742186233059,6.38617565,1907.8,1907.7,42.123]
[1742186233260,12.25617565,1907.8,1907.7,42.123]
[1742186233462,9.88156565,1907.8,1907.7,42.123]
[1742186233656,9.241,1907.8,1907.7,43.17146]
[1742186238158,5.87,1907.8,1907.7,43.17146]
[1742186238367,9.241,1907.8,1907.7,43.17146]
[1742186239166,3.371,1907.8,1907.7,43.17146]
[1742186240659,3.371,1907.8,1907.7,42.123]
[1742186240968,3.371,1907.8,1907.7,43.17146]
[1742186241467,3.371,1907.8,1907.7,42.123]
[1742186242068,4.41941,1907.8,1907.7,42.123]
[1742186242370,6.52061,1907.8,1907.7,42.123]
[1742186243563,5.4722,1907.8,1907.7,42.123]
[1742186243765,4.0591,1907.8,1907.7,42.123]
[1742186244267,5.10751,1907.8,1907.7,42.123]
[1742186245472,6.54711,1907.8,1907.7,42.123]
[1742186247170,5.4987,1907.8,1907.7,42.123]
[1742186247374,3.371,1907.8,1907.7,42.123]
[1742186247563,3.371,1907.8,1907.7,43.17146]
[1742186248064,3.371,1907.8,1907.7,42.123]
[1742186248263,3.371,1907.8,1907.7,43.17144]
[1742186248872,3.371,1907.8,1907.7,42.123]
[1742186249272,3.371,1907.8,1907.7,43.17146]
[1742186250070,3.371,1907.8,1907.7,42.123]
[1742186250275,3.371,1907.8,1907.7,43.17146]
[1742186250573,3.371,1907.8,1907.7,42.123]
[1742186252177,4.41941,1907.8,1907.7,42.123]
[1742186252377,5.76751,1907.8,1907.7,42.123]
[1742186254381,6.44701,1907.8,1907.7,42.123]
[1742186256573,5.3986,1907.8,1907.7,42.123]
[1742186256772,4.0505,1907.8,1907.7,42.8133]
[1742186257277,3.371,1907.8,1907.7,42.8133]
[1742186257880,3.371,1907.8,1907.7,43.86171]
[1742186259079,3.371,1907.8,1907.7,42.8133]
[1742186259578,6.66461181,1907.8,1907.7,42.123]
[1742186259776,7.41273524,1907.8,1907.7,42.123]
[1742186259972,7.41273524,1907.8,1907.7,40.8]
[1742186260175,8.40878266,1907.8,1907.7,40.8]
[1742186260369,11.60816523,1907.8,1907.7,40.8]
[1742186260575,1.04846,1907.7,1907.6,0.0078569]
[1742186260777,7.29798524,1907.7,1907.6,0.0078569]
[1742186260976,7.29798524,1907.7,1907.6,40.8078569]
[1742186261779,8.29403266,1907.7,1907.6,40.8078569]
[1742186262693,5.08623266,1907.7,1907.6,40.8078569]
[1742186263380,8.29403266,1907.7,1907.6,40.8078569]
[1742186263580,8.29401961,1907.7,1907.6,40.8078569]
[1742186264689,7.29797219,1907.7,1907.6,40.8078569]
[1742186264879,4.09017219,1907.7,1907.6,40.8078569]
[1742186265682,6.32420181,1907.7,1907.6,40.8078569]
[1742186266187,7.3718673,1907.7,1907.6,42.1486569]
[1742186266494,7.46039404,1907.7,1907.6,42.1486569]
[1742186266894,6.41193404,1907.7,1907.6,42.1486569]
[1742186267095,6.41193404,1907.7,1907.6,42.8527569]
[1742186267096,3.371,1907.7,1907.6,42.8527569]
[1742186267291,1.04846,1907.7,1907.6,42.8527569]
[1742186267498,4.41946,1907.7,1907.6,42.8527569]
[1742186267696,3.371,1907.7,1907.6,42.8527569]
[1742186267999,4.41946,1907.7,1907.6,42.1486569]
[1742186268190,9.99987951,1907.7,1907.6,42.1486569]
[1742186268392,9.99987951,1907.7,1907.6,1.3486569]
[1742186268695,15.86987951,1907.7,1907.6,1.3486569]
[1742186268896,15.86987951,1907.7,1907.6,0.0078569]
[1742186271094,16.86504267,1907.7,1907.6,0.0078569]
[1742186271299,20.06391814,1907.7,1907.6,0.0078569]
[1742186273198,20.0639139,1907.7,1907.6,0.0078569]
[1742186273701,1.0488,1907.1,1906.9,4.6092]
[1742186273903,1.0488,1907.1,1907.0,1.3497]
[1742186274103,4.4198,1907.1,1907.0,1.3497]
[1742186274397,4.4198,1907.1,1907.0,42.1497]
[1742186276293,3.371,1907.1,1907.0,42.1497]
[1742186278801,4.41979,1907.1,1907.0,42.1497]
[1742186280308,3.371,1907.1,1907.0,42.1497]
[1742186282511,4.41979,1907.1,1907.0,42.1497]
[1742186283310,5.73919,1907.1,1907.0,42.1497]
[1742186284509,6.41819,1907.1,1907.0,42.1497]
[1742186285509,5.09879,1907.1,1907.0,42.1497]
[1742186286414,6.52649,1907.1,1907.0,42.1497]
[1742186288614,5.09879,1907.1,1907.0,42.1497]
[1742186288813,6.52649,1907.1,1907.0,42.1497]
[1742186289316,9.73429,1907.1,1907.0,42.1497]
[1742186289705,9.82277056,1907.1,1907.0,42.1497]
[1742186290112,10.72204314,1907.1,1907.0,1.3497]
[1742186291113,11.71566345,1907.1,1907.0,1.3497]
[1742186291613,10.28796345,1907.1,1907.0,1.3497]
[1742186291913,4.45310087,1907.1,1907.0,2.7223]
[1742186292108,4.36462031,1907.1,1907.0,2.7223]
[1742186292312,4.36462031,1907.1,1907.0,3.77115]
[1742186292615,3.371,1907.1,1907.0,3.77115]
[1742186293713,29.084,1907.2,1907.1,1.04879]
[1742186293916,32.455,1907.2,1907.1,2.49059]
[1742186294817,32.455,1907.2,1907.1,1.4418]
[1742186295315,32.455,1907.2,1907.1,2.49059]
[1742186295515,32.455,1907.2,1907.1,1.4418]
[1742186295813,33.50374,1907.2,1907.1,1.4418]
[1742186296616,32.455,1907.2,1907.1,1.4418]
[1742186296921,32.455,1907.2,1907.1,2.49059]
[1742186296922,29.084,1907.2,1907.1,2.49059]
[1742186297109,32.455,1907.2,1907.1,2.49059]
[1742186298418,32.455,1907.2,1907.1,1.4418]
[1742186298618,32.455,1907.2,1907.1,2.49059]
[1742186303318,33.50374,1907.2,1907.1,1.4418]
[1742186303526,34.90034,1907.2,1907.1,1.4418]
[1742186304624,1.04885,1907.0,1906.9,44.0156569]
[1742186304819,3.06554,1907.1,1906.9,44.0156569]
[1742186305122,3.32265837,1907.1,1906.9,44.0156569]
[1742186305319,1.3745,1907.1,1906.9,45.0645469]
[1742186305523,1.3745,1907.1,1906.9,45.0645169]
[1742186305725,1.3745,1907.1,1907.0,0.6712]
[1742186305925,1.3745,1907.1,1907.0,2.064]
[1742186306128,2.7267,1907.1,1907.0,3.11285]
[1742186306322,2.7267,1907.1,1907.0,3.83005]
[1742186306820,2.7267,1907.1,1907.0,2.7812]
[1742186307628,32.455,1907.2,1907.0,3.83005]
[1742186307825,34.5314,1907.2,1907.1,1.4552]
[1742186308527,34.5314,1907.2,1907.1,2.50399]
[1742186308723,35.58014,1907.2,1907.1,1.4552]
[1742186309028,37.26277253,1907.2,1907.1,1.4552]
[1742186311429,1.04881,1907.1,1906.9,44.0156569]
[1742186311728,2.40731,1907.1,1907.0,1.3407]
[1742186314734,2.40729,1907.1,1907.0,1.3407]
[1742186315234,33.8655,1907.2,1907.0,1.3407]
[1742186315420,36.35916,1907.2,1907.0,2.7075]
[1742186315820,36.35916,1907.2,1907.1,1.3829]
[1742186321225,37.25836791,1907.2,1907.1,1.3829]
[1742186331042,37.34671454,1907.2,1907.1,1.3829]
[1742186331738,38.3407544,1907.2,1907.1,1.3829]
[1742186333451,38.34072295,1907.2,1907.1,1.3829]
[1742186335837,39.0391184,1907.2,1907.1,1.3829]
[1742186339445,38.34072295,1907.2,1907.1,1.3829]
[1742186341641,38.34073429,1907.2,1907.1,1.3829]
[1742186345348,38.25240777,1907.2,1907.1,1.3829]
[1742186346245,41.46020777,1907.2,1907.1,1.3829]
[1742186346452,41.46020777,1907.2,1906.9,40.8078569]
[1742186346453,1.04885,1907.0,1906.9,40.8078569]
[1742186346648,4.25665,1907.0,1906.9,40.8078569]
[1742186347455,5.62335,1907.0,1906.9,42.2259569]
[1742186347853,2.41555,1907.0,1906.9,42.2259569]
[1742186348151,37.0733,1907.2,1906.9,42.2259569]
[1742186348454,1.04879,1907.1,1907.0,2.1302]
[1742186351063,3.371,1907.1,1907.0,3.17902]
[1742186351255,29.084,1907.2,1907.1,1.04879]
[1742186351562,26.269,1907.2,1907.1,3.06629]
[1742186351861,26.269,1907.2,1907.1,5.56629]
[1742186352155,27.31774,1907.2,1907.1,2.0175]
[1742186352955,30.52554,1907.2,1907.1,2.0175]
[1742186353153,31.24664,1907.2,1907.1,2.0175]
[1742186353353,31.24664,1907.2,1907.1,1.3449]
[1742186354360,37.11664,1907.2,1907.1,1.3449]
[1742186354560,1.04885,1907.0,1906.9,40.8078569]
[1742186354762,4.25665,1907.0,1906.9,40.8078569]
[1742186355664,5.68135,1907.0,1906.9,40.8078569]
[1742186356264,5.76964324,1907.0,1906.9,40.8078569]
[1742186356957,11.63964324,1907.0,1906.9,40.8078569]
[1742186357164,1.04907,1906.6,1906.5,0.6648]
[1742186357351,4.41907,1906.6,1906.5,0.6648]
[1742186357860,4.41907,1906.6,1906.5,2.0419]
[1742186358061,4.41907,1906.6,1906.5,42.8419]
[1742186359158,3.37,1906.6,1906.5,42.8419]
[1742186359350,3.37,1906.6,1906.5,43.89102]
[1742186359961,0.0078569,1906.7,1906.6,1.04907]
[1742186360276,3.3778569,1906.7,1906.6,2.41347]
[1742186360766,3.3778569,1906.7,1906.6,5.62127]
[1742186362965,4.4268669,1906.7,1906.6,4.5722]
[1742186363165,4.4268669,1906.7,1906.6,1.3644]
[1742186363565,3.3778569,1906.7,1906.6,2.41347]
[1742186364866,4.4268669,1906.7,1906.6,1.3644]
[1742186365069,3.3778569,1906.7,1906.6,2.41347]
[1742186368462,4.8140569,1906.7,1906.6,2.41347]
[1742186368662,4.8140569,1906.7,1906.6,1.3644]
[1742186368862,4.8140569,1906.7,1906.6,2.41347]
[1742186369266,4.8140569,1906.7,1906.6,1.3644]
[1742186369772,4.8140569,1906.7,1906.6,2.41347]
[1742186370770,3.3778569,1906.7,1906.6,2.41347]
[1742186371763,3.3778569,1906.7,1906.6,2.0943]
[1742186371967,6.2078569,1906.7,1906.6,2.0943]
[1742186372166,7.2568669,1906.7,1906.6,2.0943]
[1742186372572,6.2078569,1906.7,1906.6,2.0943]
[1742186372866,6.2078569,1906.7,1906.6,3.14337]
[1742186373069,6.2078569,1906.7,1906.6,1.3644]
[1742186374473,6.2078569,1906.7,1906.6,2.41347]
[1742186374973,6.2078569,1906.7,1906.6,1.3644]
[1742186375275,6.2078569,1906.7,1906.6,2.41347]
[1742186375660,4.8241569,1906.7,1906.6,2.41347]
[1742186375865,0.0078569,1906.7,1906.6,2.41347]
[1742186376069,3.3788569,1906.7,1906.6,2.41347]
[1742186380378,3.3788569,1906.7,1906.6,5.62127]
[1742186386983,0.6861,1906.9,1906.6,5.62127]
[1742186386984,5.87,1907.3,1907.1,1.04879]
[1742186387180,5.87,1907.3,1907.0,1.04882]
[1742186387181,32.91944395,1907.2,1907.0,1.04882]
[1742186387381,1.94787205,1907.1,1906.8,4.5716]
[1742186387582,1.94787205,1907.1,1906.8,1.3638]
[1742186387790,1.94787205,1907.1,1906.9,1.0489]
[1742186388384,1.4548,1907.0,1906.8,1.04894]
[1742186388579,5.09354,1906.9,1906.7,2.37379]
[1742186388779,1.4548,1906.8,1906.7,2.37379]
[1742186389087,1.4548,1906.8,1906.7,1.3248]
[1742186389088,2.50376,1906.8,1906.7,1.3248]
[1742186389287,2.50376,1906.8,1906.6,4.25683]
[1742186389487,2.47951,1906.7,1906.5,41.84909]
[1742186389786,5.4751,1906.6,1906.5,43.19039]
[1742186389987,6.1857,1906.6,1906.5,43.19039]
[1742186394696,6.1857,1906.6,1906.5,41.84909]
[1742186394888,6.1857,1906.6,1906.5,40.8]
[1742186395091,6.1857,1906.6,1906.5,41.84912]
[1742186395284,7.23477,1906.6,1906.5,42.2314]
[1742186395585,6.1857,1906.6,1906.5,42.2314]
[1742186397394,6.1857,1906.6,1906.5,43.28052]
[1742186397799,6.1857,1906.6,1906.5,42.2314]
[1742186400596,7.23477,1906.6,1906.5,42.2314]
[1742186402297,6.1857,1906.6,1906.5,42.2314]
[1742186402592,6.1857,1906.6,1906.5,42.899]
[1742186402795,6.1857,1906.6,1906.5,43.5959]
[1742186404291,7.23477,1906.6,1906.5,42.2314]
[1742186406195,10.44257,1906.6,1906.5,40.8]
[1742186406394,11.34075091,1906.6,1906.5,40.8]
[1742186406799,11.42899256,1906.6,1906.5,40.8]
[1742186407096,9.3935,1906.6,1906.5,42.1553]
[1742186407286,9.3935,1906.6,1906.5,43.5707]
[1742186408394,6.1867,1906.6,1906.5,43.5707]
[1742186408596,4.8015,1906.6,1906.5,43.5707]
[1742186408794,3.371,1906.6,1906.5,43.5707]
[1742186408993,3.371,1906.6,1906.5,44.61978]
[1742186410399,3.371,1906.6,1906.5,43.5707]
[1742186410700,5.81717,1906.6,1906.5,43.5707]
[1742186411202,5.81717,1906.6,1906.5,42.1553]
[1742186411793,4.7681,1906.6,1906.5,42.1553]
[1742186411994,5.81717,1906.6,1906.5,42.1553]
[1742186413401,4.7681,1906.6,1906.5,42.1553]
[1742186413603,5.81717,1906.6,1906.5,42.1553]
[1742186415704,4.7681,1906.6,1906.5,42.1553]
[1742186416007,3.37,1906.6,1906.5,43.20439]
[1742186416603,1.3893,1906.7,1906.6,1.04907]
[1742186416807,5.87,1906.8,1906.7,1.04901]
[1742186417108,10.1379333,1906.8,1906.7,1.3564]
[1742186417298,10.1379333,1906.8,1906.7,2.40541]
[1742186417607,10.1379333,1906.8,1906.7,2.6923]
[1742186417806,5.87,1906.8,1906.7,3.74131]
[1742186418110,3.37,1906.8,1906.7,2.6923]
[1742186418306,29.09,1907.0,1906.9,1.0489]
[1742186418606,32.46,1907.0,1906.9,1.0489]
[1742186420309,32.46,1907.0,1906.9,4.2567]
[1742186421108,29.09,1907.0,1906.9,4.2567]
[1742186421415,32.46,1907.0,1906.9,4.2567]
[1742186422908,29.09,1907.0,1906.9,4.2567]
[1742186423110,32.46,1907.0,1906.9,4.2567]
[1742186423712,0.0078569,1907.2,1907.1,1.04879]
[1742186424206,3.3778569,1907.2,1907.1,1.04879]
[1742186424405,3.3778569,1907.2,1907.1,3.12489]
[1742186424811,3.3778569,1907.2,1907.1,6.33269]
[1742186428207,3.3778569,1907.2,1907.1,47.13269]
[1742186429704,3.3778569,1907.2,1907.1,43.92489]
[1742186432908,3.3768569,1907.2,1907.1,43.92489]
[1742186437147,4.4255969,1907.2,1907.1,40.8]
[1742186437360,7.6333969,1907.2,1907.1,40.8]
[1742186437644,1.049,1906.8,1906.6,1.3477]
[1742186437845,6.50741,1906.7,1906.5,1.04912]
[1742186438053,5.4559,1906.6,1906.5,2.39682]
[1742186438253,6.50497,1906.6,1906.4,1.0569969]
[1742186438449,1.3813,1906.5,1906.4,2.4091969]
[1742186439046,1.3813,1906.5,1906.4,43.2091969]
[1742186439243,2.43042,1906.5,1906.4,42.1600569]
[1742186439562,2.43042,1906.5,1906.4,40.8078569]
[1742186441564,1.3813,1906.5,1906.4,40.8078569]
[1742186442164,1.3813,1906.5,1906.4,41.8570369]
[1742186442474,1.3813,1906.5,1906.4,42.1425569]
[1742186444853,2.43042,1906.5,1906.4,42.1425569]
[1742186445357,2.43042,1906.5,1906.4,40.8078569]
[1742186450373,5.01863305,1906.5,1906.4,40.8]
[1742186450555,1.0494,1906.0,1905.9,1.3881]
[1742186450759,4.4194,1906.0,1905.9,1.3881]
[1742186451650,3.37,1906.0,1905.9,42.1881]
[1742186452254,5.7949,1906.0,1905.9,42.1881]
[1742186454569,4.7455,1906.0,1905.9,42.1881]
[1742186454771,5.7949,1906.0,1905.9,42.1881]
[1742186455863,4.7455,1906.0,1905.9,42.1881]